Workbook

Sheet Лист
A2: 320 | C2: ЗАДАНИЕ
A3: 340 | C3: № | D3: 1 | E3: 2 | F3: 3 | G3: 4 | H3: 5 | I3: 6 | J3: 7 | K3: 8 | L3: 9 | M3: 10 | N3: формат | P3: вес 1 мм
A4: 350 | C4: форматы, мм | D4: 510 | E4: 600 | F4: 840 | G4: 1350 | H4: 1160 | N4: мин | O4: макс | P4: 0.588
A5: 370 | C5: вес, кг | D5: 2000 | E5: 4000 | F5: 6000 | G5: 2500 | H5: 2500 | N5: 2400 | O5: 2550
A6: 380
A7: 400 | C7: РЕШЕНИЕ
A8: 420 | C8: формат №1, шт/кг | D8: 1 | E8: 1 | G8: 1 | N8: =$D$4*D8+$E$4*E8+$F$4*F8+$G$4*G8+$H$4*H8+$I$4*I8+$J$4*J8+$K$4*K8+$L$4*L8+$M$4*M8 -> 2460
A9: 440 | D9: =D$4*$P$4*D8 -> 299.88 | E9: =E$4*$P$4*E8 -> 352.8 | F9: 0 | G9: 793.8 | H9: 0 | I9: =I$4*$P$4*I8 -> 0 | J9: 0 | K9: 0 | L9: 0 | M9: 0
A10: 450 | C10: формат №2, шт/кг | D10: 1 | E10: 1 | G10: 1 | N10: =$D$4*D10+$E$4*E10+$F$4*F10+$G$4*G10+$H$4*H10+$I$4*I10+$J$4*J10+$K$4*K10+$L$4*L10+$M$4*M10 -> 2460
A11: 470 | D11: =D$4*$P$4*D10 -> 299.88 | E11: =E$4*$P$4*E10 -> 352.8 | F11: =F$4*$P$4*F10 -> 0 | G11: =G$4*$P$4*G10 -> 793.8 | H11: =H$4*$P$4*H10 -> 0 | I11: =I$4*$P$4*I10 -> 0 | J11: =J$4*$P$4*J10 -> 0 | K11: =K$4*$P$4*K10 -> 0 | L11: =L$4*$P$4*L10 -> 0 | M11: =M$4*$P$4*M10 -> 0
A12: 500 | C12: формат №3, шт/кг | G12: 1 | H12: 1 | N12: =$D$4*D12+$E$4*E12+$F$4*F12+$G$4*G12+$H$4*H12+$I$4*I12+$J$4*J12+$K$4*K12+$L$4*L12+$M$4*M12 -> 2510
A13: 510 | D13: 0 | E13: 0 | F13: 0 | G13: 793.8 | H13: 682.08 | I13: 0 | J13: 0 | K13: 0 | L13: 0 | M13: 0
A14: 520 | C14: формат №4, шт/кг | D14: 1 | F14: 1 | H14: 1 | N14: =$D$4*D14+$E$4*E14+$F$4*F14+$G$4*G14+$H$4*H14+$I$4*I14+$J$4*J14+$K$4*K14+$L$4*L14+$M$4*M14 -> 2510
A15: 580 | D15: 299.88 | E15: 0 | F15: 493.92 | G15: 0 | H15: 682.08 | I15: 0 | J15: 0 | K15: 0 | L15: 0 | M15: 0
A16: 600 | C16: формат №5, шт/кг | D16: 1 | E16: 2 | F16: 1 | N16: =$D$4*D16+$E$4*E16+$F$4*F16+$G$4*G16+$H$4*H16+$I$4*I16+$J$4*J16+$K$4*K16+$L$4*L16+$M$4*M16 -> 2550
A17: 610 | D17: 299.88 | E17: 705.6 | F17: 493.92 | G17: 0 | H17: 0 | I17: 0 | J17: 0 | K17: 0 | L17: 0 | M17: 0
A18: 620 | C18: формат №6, шт/кг | D18: 1 | F18: 1 | H18: 1 | N18: =$D$4*D18+$E$4*E18+$F$4*F18+$G$4*G18+$H$4*H18+$I$4*I18+$J$4*J18+$K$4*K18+$L$4*L18+$M$4*M18 -> 2510
A19: 640 | D19: 299.88 | E19: 0 | F19: 493.92 | G19: 0 | H19: 682.08 | I19: 0 | J19: 0 | K19: 0 | L19: 0 | M19: 0
A20: 680 | C20: формат №7, шт/кг | D20: 1 | E20: 2 | F20: 1 | N20: =$D$4*D20+$E$4*E20+$F$4*F20+$G$4*G20+$H$4*H20+$I$4*I20+$J$4*J20+$K$4*K20+$L$4*L20+$M$4*M20 -> 2550
A21: 720 | D21: 299.88 | E21: 705.6 | F21: 493.92 | G21: 0 | H21: 0 | I21: 0 | J21: 0 | K21: 0 | L21: 0 | M21: 0
A22: 760 | C22: формат №8, шт/кг | D22: 1 | E22: 2 | F22: 1 | N22: =$D$4*D22+$E$4*E22+$F$4*F22+$G$4*G22+$H$4*H22+$I$4*I22+$J$4*J22+$K$4*K22+$L$4*L22+$M$4*M22 -> 2550
A23: 810 | D23: 299.88 | E23: 705.6 | F23: 493.92 | G23: 0 | H23: 0 | I23: 0 | J23: 0 | K23: 0 | L23: 0 | M23: 0
A24: 820 | C24: формат №9, шт/кг | F24: 3 | N24: =$D$4*D24+$E$4*E24+$F$4*F24+$G$4*G24+$H$4*H24+$I$4*I24+$J$4*J24+$K$4*K24+$L$4*L24+$M$4*M24 -> 2520
A25: 835 | D25: 0 | E25: 0 | F25: 1481.76 | G25: 0 | H25: 0 | I25: 0 | J25: 0 | K25: 0 | L25: 0 | M25: 0
A26: 840 | C26: формат №10, шт/кг | D26: 1 | F26: 1 | H26: 1 | N26: =$D$4*D26+$E$4*E26+$F$4*F26+$G$4*G26+$H$4*H26+$I$4*I26+$J$4*J26+$K$4*K26+$L$4*L26+$M$4*M26 -> 2510
A27: 845 | D27: 299.88 | E27: 0 | F27: 493.92 | G27: 0 | H27: 682.08 | I27: 0 | J27: 0 | K27: 0 | L27: 0 | M27: 0
A28: 900 | C28: формат №11, шт/кг | F28: 3 | N28: =$D$4*D28+$E$4*E28+$F$4*F28+$G$4*G28+$H$4*H28+$I$4*I28+$J$4*J28+$K$4*K28+$L$4*L28+$M$4*M28 -> 2520
A29: 960 | D29: 0 | E29: 0 | F29: 1481.76 | G29: 0 | H29: 0 | I29: 0 | J29: 0 | K29: 0 | L29: 0 | M29: 0
A30: 1060 | C30: формат №12, шт/кг | E30: 4 | N30: =$D$4*D30+$E$4*E30+$F$4*F30+$G$4*G30+$H$4*H30+$I$4*I30+$J$4*J30+$K$4*K30+$L$4*L30+$M$4*M30 -> 2400
A31: 1160 | D31: 0 | E31: 1411.2 | F31: 0 | G31: 0 | H31: 0 | I31: 0 | J31: 0 | K31: 0 | L31: 0 | M31: 0
A32: 1200 | C32: всего, кг | D32: =SUM(D9+D11+D13+D15+D17+D19+D21+D23+D25+D27+D29+D31) -> 2399.04 | E32: =SUM(E9+E11+E13+E15+E17+E19+E21+E23+E25+E27+E29+E31) -> 4233.6 | F32: 5927.04 | G32: 2381.4 | H32: 2728.32 | I32: 0 | J32: 0 | K32: 0 | L32: 0 | M32: 0 | N32: =SUM(D32:M33) -> 17669.4
A33: 1350
A34: 1400
C35: Необходимо расчитать оптимальный ширины формат (от 2400 мм до 2550 мм) с учётом заданного веса.
C36: Всё как в таблице "Решение", только формулами или с помощью VBA.
